{"text_format":"1","workbook":"xlsx","n_sheets":5,"sheets":["Formulario de Postulación","Consolidado","Hoja1","Hoja2","BD"],"not_rendered":{"charts":0,"images":1,"macros":1,"external_links":0,"defined_names":17,"comments":0,"pivot_tables":0},"unopened":[],"bounds":{"document_bytes":16777216,"sheet_cells":100000,"rows_first":2000,"rows_last":500,"rows_between":2000,"halvings":0,"cell_chars":16384,"cell_head_chars":4096},"cells_cut":0,"cells_raw":0,"read":"whole","date_system":"1900"}

{"sheet":"Formulario de Postulación","index":0,"n_rows":158,"n_cols":35,"rows_kept":158,"cut":false,"hidden":false,"merged":[[46,25,46,31],[47,25,47,31],[152,30,152,32],[155,3,155,9],[156,3,156,9],[157,3,157,9],[155,13,155,17],[156,13,156,17],[157,13,157,17],[99,2,100,11],[99,13,100,19],[99,21,100,24],[54,2,54,4],[54,5,54,7],[105,1,105,6],[89,26,90,28],[89,13,90,19],[93,1,93,11],[93,13,97,34],[103,13,107,34],[106,1,106,11],[107,1,107,11],[103,1,103,11],[91,13,91,19],[33,27,33,31],[34,27,34,31],[35,27,35,31],[36,27,36,31],[31,27,31,31],[88,1,88,34],[145,30,145,34],[133,1,133,11],[136,1,136,11],[137,1,137,11],[133,13,137,34],[129,13,130,19],[129,21,130,24],[49,1,49,19],[49,21,49,34],[51,22,51,30],[52,22,52,30],[99,26,100,28],[50,12,50,14],[50,16,50,18],[89,2,90,11],[89,1,90,1],[95,1,95,6],[99,1,100,1],[6,1,6,34],[10,1,10,34],[23,1,23,34],[11,24,11,33],[12,24,12,33],[12,13,12,22],[12,2,12,11],[11,2,11,11],[11,13,11,22],[13,13,13,22],[14,13,14,22],[15,13,15,33],[16,13,16,33],[20,24,20,33],[15,2,15,11],[8,1,8,10],[7,1,7,10],[7,13,7,18],[8,13,8,18],[32,1,32,4],[33,1,33,4],[17,13,17,22],[17,24,17,33],[18,13,18,22],[53,22,53,30],[54,22,54,30],[51,2,51,7],[55,22,55,30],[54,8,54,10],[52,2,52,7],[53,2,53,7],[53,8,53,10],[40,19,40,20],[50,31,50,34],[50,22,50,29],[55,2,55,4],[55,5,55,7],[50,8,50,10],[52,8,52,10],[55,8,55,10],[50,2,50,6],[43,2,43,15],[44,2,44,15],[91,26,91,28],[109,1,110,1],[109,2,110,11],[109,13,110,19],[109,21,110,24],[109,26,110,28],[109,30,109,31],[99,30,99,31],[91,1,91,11],[97,1,97,11],[96,1,96,11],[91,21,91,24],[101,1,101,11],[101,13,101,19],[101,21,101,24],[101,26,101,28],[109,33,109,34],[111,13,111,19],[111,21,111,24],[111,26,111,28],[111,1,111,11],[123,1,123,11],[129,26,130,28],[129,30,129,31],[129,33,129,34],[129,2,130,11],[126,1,126,11],[113,1,113,11],[116,1,116,11],[113,13,117,34],[117,1,117,11],[119,1,120,1],[119,2,120,11],[119,13,120,19],[115,1,115,6],[125,1,125,6],[140,1,140,34],[141,1,142,34],[144,1,144,34],[150,7,150,9],[40,22,40,23],[119,21,120,24],[119,26,120,28],[131,1,131,11],[131,13,131,19],[131,21,131,24],[131,26,131,28],[123,13,127,34],[127,1,127,11],[129,1,130,1],[119,30,119,31],[119,33,119,34],[121,1,121,11],[121,13,121,19],[121,21,121,24],[121,26,121,28],[46,2,46,15],[47,2,47,15],[40,2,41,15],[42,2,42,15],[32,13,32,19],[45,2,45,15],[40,25,41,31],[42,25,42,31],[43,25,43,31],[44,25,44,31],[45,25,45,31],[14,24,14,29],[19,13,19,18],[20,13,20,18],[16,2,16,11],[39,1,39,34],[21,26,21,33],[29,1,29,34],[32,6,32,12],[33,6,33,12],[33,13,33,19],[34,6,34,12],[34,13,34,19],[35,6,35,12],[35,13,35,19],[34,1,34,4],[35,1,35,4],[36,1,36,4],[32,27,32,31],[135,1,135,6],[14,2,14,11],[7,25,7,33],[8,25,8,33],[26,21,26,25],[26,32,26,34],[20,2,20,11],[18,24,18,33],[19,2,19,11],[17,2,17,11],[21,18,21,22],[13,2,13,11],[19,24,19,33],[18,2,18,11],[13,24,13,29],[20,20,20,21],[36,6,36,12],[36,13,36,19],[30,1,31,5],[30,6,31,12],[30,13,31,19],[30,21,30,22],[30,24,30,25],[99,33,99,34],[89,30,89,31],[89,33,89,34],[56,1,56,34],[57,2,57,11],[57,13,57,19],[57,21,57,24],[57,26,57,28],[57,30,57,31],[57,33,57,34],[59,1,59,11],[59,13,59,19],[59,21,59,24],[59,26,59,28],[61,1,61,11],[61,13,65,34],[63,1,63,6],[64,1,64,11],[65,1,65,11],[67,2,67,11],[89,21,90,24],[67,13,67,19],[67,21,67,24],[67,26,67,28],[67,30,67,31],[67,33,67,34],[69,1,69,11],[69,13,69,19],[69,21,69,24],[69,26,69,28],[71,1,71,11],[71,13,75,34],[73,1,73,6],[74,1,74,11],[75,1,75,11],[81,1,81,11],[81,13,85,34],[83,1,83,6],[84,1,84,11],[85,1,85,11],[77,2,77,11],[77,13,77,19],[77,21,77,24],[77,26,77,28],[77,30,77,31],[77,33,77,34],[79,1,79,11],[79,13,79,19],[79,21,79,24],[79,26,79,28]]}
[null,null,null,null,null,null,null,null,null,null,null,null,null,null,null,null,null,null,null,null,null,null,null,null,null,null,null,null,null,null,null,"FORM - 053 - 2 - v02.1"]
[]
[null,null,null,null,null,null,null,null,null,null,null,null,"FORMULARIO DE POSTULACIÓN"]
[]
[]
[]
[null,"Declaro que toda la información plasmada en el presente formulario es verdadera, certifico que no oculto información relevante respecto a observaciones laborales y autorizo a la Bolsa Boliviana de Valores a que en caso de ser necesario realice una investigación para corroborar su veracidad.\n"]
[null,"Cargo al que postula:",null,null,null,null,null,null,null,null,null,null,null,"Fecha (DD/MM/AA)"]
[]
[]
[null,"DATOS PERSONALES"]
[null,null,"Apellido Paterno",null,null,null,null,null,null,null,null,null,null,"Apellido Materno",null,null,null,null,null,null,null,null,null,null,"Nombre(s)"]
[]
[null,null,"Apellido de Casada",null,null,null,null,null,null,null,null,null,null,"Ciudad de residencia",null,null,null,null,null,null,null,null,null,null,"N° Cédula o Pasaporte"]
[]
[null,null,"Correo electrónico",null,null,null,null,null,null,null,null,null,null,"Dirección de domicilio"]
[]
[null,null,"Estado Civil",null,null,null,null,null,null,null,null,null,null,"Teléfono fijo",null,null,null,null,null,null,null,null,null,null,"Celular"]
[]
[null,null,"Fecha de nacimiento  (DD/MM/AA)",null,null,null,null,null,null,null,null,null,null,"Nacionalidad",null,null,null,null,null,null,"Edad"]
[]
[]
[]
[null,"DECLARACIÓN JURADA"]
[null,"¿Tiene parentesco con algún(a) trabajador(a) de la BBV?",null,null,null,null,null,null,null,null,null,null,null,null,null,"En caso de tener parentesco con algún trabajador:"]
[]
[null,null,null,null,"SI",null,null,"NO",null,null,null,null,null,null,null,"Nombre de la persona",null,null,null,null,null,null,null,null,null,null,null,"Tipo de parentesco "]
[]
[]
[null,"FORMACIÓN "]
[null,null,null,null,null,null,"Carrera ",null,null,null,null,null,null,"Mención",null,null,null,null,null,null,null,"Desde ",null,null,"Hasta"]
[null,null,null,null,null,null,null,null,null,null,null,null,null,null,null,null,null,null,null,null,null,"Mes","Año",null,"Mes","Año",null,"Institución",null,null,null,null,"Titulo (Si/No)"]
[null,null,null,null,null,4]
[null,null,null,null,null,1]
[null,null,null,null,null,1]
[null,null,null,null,null,1]
[null,null,null,null,null,1]
[]
[]
[null,"FORMACIÓN COMPLEMENTARIA (Solo mencione cursos relacionados al cargo)"]
[null,null,"Título del curso",null,null,null,null,null,null,null,null,null,null,null,null,null,"Horas académicas",null,null,"Desde ",null,null,"Hasta",null,null,"Institución",null,null,null,null,null,null,"Titulo (Si/No)"]
[null,null,null,null,null,null,null,null,null,null,null,null,null,null,null,null,null,null,null,"Mes","Año",null,"Mes","Año"]
[]
[]
[]
[]
[]
[]
[]
[null,"IDIOMAS",null,null,null,null,null,null,null,null,null,null,null,null,null,null,null,null,null,null,null,"MANEJO DE PROGRAMAS DE COMPUTACIÓN"]
[null,null,"Idioma",null,null,null,null,null,"Habla",null,null,null,"Lee",null,null,null,"Escribe",null,null,null,null,null,"Programa/Paquete",null,null,null,null,null,null,null,null,"Grado de Dominio"]
[null,null,null,null,null,null,null,null,null,null,null,3,null,null,null,2,null,null,null,3,null,null,null,null,null,null,null,null,null,null,null,null,null,null,2]
[null,null,null,null,null,null,null,null,null,null,null,1,null,null,null,1,null,null,null,1,null,null,null,null,null,null,null,null,null,null,null,null,null,null,1]
[null,null,null,null,null,null,null,null,null,null,null,1,null,null,null,1,null,null,null,1,null,null,null,null,null,null,null,null,null,null,null,null,null,null,1]
[null,null,null,null,null,null,null,null,null,null,null,null,null,null,null,null,null,null,null,null,null,null,null,null,null,null,null,null,null,null,null,null,null,null,1]
[null,null,null,null,null,null,null,null,null,null,null,null,null,null,null,null,null,null,null,null,null,null,null,null,null,null,null,null,null,null,null,null,null,null,1]
[null,"EXPERIENCIA LABORAL ESPECÍFICA (Registre todas las experiencias laborales. Comience mencionando  el trabajo más reciente)"]
[null,"1.","Nombre de la Institución",null,null,null,null,null,null,null,null,null,null,"Rubro ",null,null,null,null,null,null,null,"Ciudad",null,null,null,null,"Teléfonos",null,null,null,"Desde ",null,null,"Hasta"]
[null,null,null,null,null,null,null,null,null,null,null,null,null,null,null,null,null,null,null,null,null,null,null,null,null,null,null,null,null,null,"Mes","Año",null,"Mes","Año"]
[]
[null,"Título exacto del cargo desempeñado:",null,null,null,null,null,null,null,null,null,null,null,"Mencione las funciones más importantes:"]
[]
[null,"Nombre inmediato superior:"]
[]
[null,"Causal de desvinculación:"]
[]
[]
[null,2,"Nombre de la Institución",null,null,null,null,null,null,null,null,null,null,"Rubro ",null,null,null,null,null,null,null,"Ciudad",null,null,null,null,"Teléfonos",null,null,null,"Desde ",null,null,"Hasta"]
[null,null,null,null,null,null,null,null,null,null,null,null,null,null,null,null,null,null,null,null,null,null,null,null,null,null,null,null,null,null,"Mes","Año",null,"Mes","Año"]
[]
[null,"Título exacto del cargo desempeñado:",null,null,null,null,null,null,null,null,null,null,null,"Mencione las funciones más importantes:"]
[]
[null,"Nombre inmediato superior:"]
[]
[null,"Causal de desvinculación:"]
[]
[]
[null,3,"Nombre de la Institución",null,null,null,null,null,null,null,null,null,null,"Rubro ",null,null,null,null,null,null,null,"Ciudad",null,null,null,null,"Teléfonos",null,null,null,"Desde ",null,null,"Hasta"]
[null,null,null,null,null,null,null,null,null,null,null,null,null,null,null,null,null,null,null,null,null,null,null,null,null,null,null,null,null,null,"Mes","Año",null,"Mes","Año"]
[]
[null,"Título exacto del cargo desempeñado:",null,null,null,null,null,null,null,null,null,null,null,"Mencione las funciones más importantes:"]
[]
[null,"Nombre inmediato superior:"]
[]
[null,"Causal de desvinculación:"]
[]
[]
[]
[null,"EXPERIENCIA LABORAL GENERAL (Registre todas las experiencias laborales. Comience mencionando el trabajo más reciente)"]
[null,"1.","Nombre de la Institución",null,null,null,null,null,null,null,null,null,null,"Rubro ",null,null,null,null,null,null,null,"Ciudad",null,null,null,null,"Teléfonos",null,null,null,"Desde ",null,null,"Hasta"]
[null,null,null,null,null,null,null,null,null,null,null,null,null,null,null,null,null,null,null,null,null,null,null,null,null,null,null,null,null,null,"Mes","Año",null,"Mes","Año"]
[]
[null,"Título exacto del cargo desempeñado:",null,null,null,null,null,null,null,null,null,null,null,"Mencione las funciones más importantes:"]
[]
[null,"Nombre inmediato superior:"]
[]
[null,"Causal de desvinculación:"]
[]
[]
[null,"2.","Nombre de la Institución",null,null,null,null,null,null,null,null,null,null,"Rubro ",null,null,null,null,null,null,null,"Ciudad",null,null,null,null,"Teléfonos",null,null,null,"Desde ",null,null,"Hasta"]
[null,null,null,null,null,null,null,null,null,null,null,null,null,null,null,null,null,null,null,null,null,null,null,null,null,null,null,null,null,null,"Mes","Año",null,"Mes","Año"]
[]
[null,"Título exacto del cargo desempeñado:",null,null,null,null,null,null,null,null,null,null,null,"Mencione las funciones más importantes:"]
[]
[null,"Nombre inmediato superior:"]
[]
[null,"Causal de desvinculación:"]
[]
[]
[null,"3.","Nombre de la Institución",null,null,null,null,null,null,null,null,null,null,"Rubro ",null,null,null,null,null,null,null,"Ciudad",null,null,null,null,"Teléfonos",null,null,null,"Desde ",null,null,"Hasta"]
[null,null,null,null,null,null,null,null,null,null,null,null,null,null,null,null,null,null,null,null,null,null,null,null,null,null,null,null,null,null,"Mes","Año",null,"Mes","Año"]
[]
[null,"Título exacto del cargo desempeñado:",null,null,null,null,null,null,null,null,null,null,null,"Mencione las funciones más importantes:"]
[]
[null,"Nombre inmediato superior:"]
[]
[null,"Causal de desvinculación:"]
[]
[]
[null,"4.","Nombre de la Institución",null,null,null,null,null,null,null,null,null,null,"Rubro ",null,null,null,null,null,null,null,"Ciudad",null,null,null,null,"Teléfonos",null,null,null,"Desde ",null,null,"Hasta"]
[null,null,null,null,null,null,null,null,null,null,null,null,null,null,null,null,null,null,null,null,null,null,null,null,null,null,null,null,null,null,"Mes","Año",null,"Mes","Año"]
[]
[null,"Título exacto del cargo desempeñado:",null,null,null,null,null,null,null,null,null,null,null,"Mencione las funciones más importantes:"]
[]
[null,"Nombre inmediato superior:"]
[]
[null,"Causal de desvinculación:"]
[]
[]
[null,"5.","Nombre de la Institución",null,null,null,null,null,null,null,null,null,null,"Rubro ",null,null,null,null,null,null,null,"Ciudad",null,null,null,null,"Teléfonos",null,null,null,"Desde ",null,null,"Hasta"]
[null,null,null,null,null,null,null,null,null,null,null,null,null,null,null,null,null,null,null,null,null,null,null,null,null,null,null,null,null,null,"Mes","Año",null,"Mes","Año"]
[]
[null,"Título exacto del cargo desempeñado:",null,null,null,null,null,null,null,null,null,null,null,"Mencione las funciones más importantes:"]
[]
[null,"Nombre inmediato superior:"]
[]
[null,"Causal de desvinculación:"]
[]
[]
[]
[null,"ASPECTOS RELEVANTES (Mencione aspectos que considere necesario señalar sobre su postulación) "]
[]
[]
[]
[null,"INFORMACIÓN COMPLEMENTARIA "]
[null,"Disponibilidad de trabajo inmediata:                          ",null,null,null,null,null,null,null,"SI",null,null,"NO",null,null,null,"En caso de NO ser inmediata,  en cuanto tiempo  estaría disponible?                                                                                                      "]
[]
[null,"Autoriza la solicitud de información de su empleo actual (en caso de continuar trabajando):",null,null,null,null,null,null,null,null,null,null,null,null,null,null,null,null,null,null,"SI",null,null,"NO"]
[]
[]
[null,"Pretensión salarial en Bs",null,null,null,null,null,null,null,null,null,"¿Su pretensión salarial es negociable?",null,null,null,null,null,null,null,null,"SI",null,null,"NO"]
[]
[null,"¿Cuál fue el medio por el cual  usted se enteró de la convocatoria?",null,null,null,null,null,null,null,null,null,null,null,null,null,"Prensa",null,null,null,"Pág WEB",null,null,null,"Redes sociales",null,null,null,null,"Otro"]
[]
[null,"Referencias Laborales"]
[null,"Nombre",null,null,null,null,null,null,null,null,null,"Teléfono"]
[null,"Nombre",null,null,null,null,null,null,null,null,null,"Teléfono"]
[null,"Nombre",null,null,null,null,null,null,null,null,null,"Teléfono"]

{"sheet":"Consolidado","index":1,"n_rows":2,"n_cols":22,"rows_kept":2,"cut":false,"hidden":true,"merged":[[0,7,0,21],[0,1,0,6]]}
[null,"DATOS",null,null,null,null,null,"FORMACIÓN"]
[null,"Apellido Paterno","Apellido Materno","Nombre(s)","Apellido de Casada","Correo electrónico","Celular","Carrera  1","Grado","Mención","Carrera  2","Grado","Mención","Carrera  3","Grado","Mención","Carrera  4","Grado","Mención","Carrera  5","Grado","Mención"]

{"sheet":"Hoja1","index":2,"n_rows":16,"n_cols":1,"rows_kept":16,"cut":false,"hidden":true,"merged":[]}
["FORMACIÓN"]
[]
["Estudiante"]
["Técnico Medio"]
["Técnico Superior"]
["Egreso"]
["Licenciatura"]
["Diplomado"]
["Maestría"]
["Doctorado"]
[]
["IDIOMAS Y COMPU"]
[]
["Muy bien"]
["Bien"]
["Regular"]

{"sheet":"Hoja2","index":3,"n_rows":18,"n_cols":3,"rows_kept":18,"cut":false,"hidden":true,"merged":[]}
["FORMACIÓN"]
[]
["Estudiante",null,"Si"]
["Técnico Medio",null,"No"]
["Técnico Superior"]
["Egreso"]
["Licenciatura"]
["Diplomado"]
["Maestría"]
["Doctorado"]
["Certificación"]
["Especialidad"]
[]
["IDIOMAS Y COMPU"]
[]
["Muy bien"]
["Bien"]
["Regular"]

{"sheet":"BD","index":4,"n_rows":5,"n_cols":176,"rows_kept":5,"cut":false,"hidden":false,"merged":[[1,97,1,98],[1,99,2,99],[1,100,2,100],[1,101,2,101],[1,102,2,102],[1,91,2,91],[1,92,2,92],[1,95,1,96],[1,83,1,84],[1,85,1,86],[1,87,2,87],[1,88,2,88],[1,89,2,89],[1,90,2,90],[1,93,2,93],[1,94,2,94],[1,73,1,74],[1,75,2,75],[1,76,2,76],[1,77,2,77],[1,78,2,78],[1,79,2,79],[1,80,2,80],[1,81,2,81],[1,82,2,82],[0,155,2,155],[0,30,2,30],[1,160,1,161],[1,11,2,11],[1,27,2,27],[1,31,2,31],[1,32,2,32],[1,34,2,34],[1,35,2,35],[1,33,2,33],[1,41,2,41],[0,135,0,144],[0,145,0,154],[1,135,2,135],[1,136,2,136],[1,137,1,138],[1,139,1,140],[1,141,2,141],[1,142,2,142],[1,143,2,143],[1,144,2,144],[1,145,2,145],[1,146,2,146],[1,147,1,148],[1,149,1,150],[1,151,2,151],[1,152,2,152],[0,2,0,7],[1,5,2,5],[1,6,2,6],[1,7,2,7],[0,10,0,27],[1,14,2,14],[1,19,2,19],[1,22,2,22],[1,12,2,12],[1,20,2,20],[0,45,0,56],[0,57,0,66],[1,62,2,62],[1,63,2,63],[1,64,2,64],[1,65,2,65],[1,66,2,66],[1,57,2,57],[1,58,2,58],[1,59,2,59],[1,60,2,60],[1,0,2,0],[1,1,2,1],[1,153,2,153],[1,154,2,154],[1,24,2,24],[1,26,2,26],[1,15,2,15],[1,16,2,16],[1,18,2,18],[1,10,2,10],[1,40,2,40],[1,43,2,43],[1,45,2,45],[1,46,2,46],[1,47,2,47],[1,23,2,23],[1,37,2,37],[1,39,2,39],[1,36,2,36],[1,38,2,38],[1,48,2,48],[1,42,2,42],[1,44,2,44],[1,61,2,61],[1,55,2,55],[1,56,2,56],[1,49,2,49],[1,50,2,50],[1,51,2,51],[1,52,2,52],[1,53,2,53],[1,114,2,114],[0,103,0,114],[1,103,2,103],[1,107,1,108],[1,109,1,110],[1,111,2,111],[1,104,2,104],[1,105,2,105],[1,106,2,106],[0,67,0,78],[0,79,0,90],[0,91,0,102],[1,67,2,67],[1,68,2,68],[1,69,2,69],[1,70,2,70],[1,71,1,72],[0,115,0,124],[1,115,2,115],[1,116,2,116],[1,117,1,118],[1,119,1,120],[1,121,2,121],[1,122,2,122],[1,123,2,123],[1,124,2,124],[1,2,2,4],[3,2,3,4],[1,8,1,9],[1,165,1,168],[1,169,1,171],[0,172,2,172],[1,163,1,164],[1,162,2,162],[0,156,2,156],[1,157,1,158],[0,157,0,168],[0,31,0,44],[1,112,2,112],[0,125,0,134],[1,125,2,125],[1,126,2,126],[1,127,1,128],[1,129,1,130],[1,131,2,131],[1,132,2,132],[1,133,2,133],[1,134,2,134],[1,54,2,54],[1,113,2,113]]}
[null,null,"DATOS PERSONALES",null,null,null,null,null,null,null,"FORMACIÓN",null,null,null,null,null,null,null,null,null,null,null,null,null,null,null,null,null,null,null,"Nota","FORMACIÓN COMPLEMENTARIA",null,null,null,null,null,null,null,null,null,null,null,null,null,"IDIOMAS",null,null,null,null,null,null,null,null,null,null,null,"MANEJO DE PROGRAMAS DE COMPUTACIÓN",null,null,null,null,null,null,null,null,null,"1. EXPERIENCIA",null,null,null,null,null,null,null,null,null,null,null,"2. EXPERIENCIA",null,null,null,null,null,null,null,null,null,null,null,"3. EXPERIENCIA",null,null,null,null,null,null,null,null,null,null,null,"1. EXPERIENCIA",null,null,null,null,null,null,null,null,null,null,null,"2. EXPERIENCIA",null,null,null,null,null,null,null,null,null,"3. EXPERIENCIA",null,null,null,null,null,null,null,null,null,"4. EXPERIENCIA",null,null,null,null,null,null,null,null,null,"5. EXPERIENCIA",null,null,null,null,null,null,null,null,null,"Nota","ASPECTOS RELEVANTES","INFORMACIÓN COMPLEMENTARIA",null,null,null,null,null,null,null,null,null,null,null,null,null,null,"Nota Final"]
["FECHA","Cargo al que postula:","Nombre",null,null,"Teléfono fijo","Celular","Edad:","Tiene parentesco con algun funcionario de la BBV",null,"Nivel de formación","Carrera","Institución","Título","Nivel de formación","Carrera","Institución","Título","Nivel de formación","Carrera","Institución","Título","Nivel de formación","Carrera","Institución","Título","Nivel de formación","Carrera","Institución","Título",null,"Título del curso","Horas académicas","Institución","Título del curso","Horas académicas","Institución","Título del curso","Institución","Título del curso","Institución","Título del curso","Institución","Título del curso","Institución","Idioma ","Habla","Lee","Escribe","Idioma ","Habla","Lee","Escribe","Idioma ","Habla","Lee","Escribe","Programa/Paquete","Grado de Dominio","Programa/Paquete","Grado de Dominio","Programa/Paquete","Grado de Dominio","Programa/Paquete","Grado de Dominio","Programa/Paquete","Grado de Dominio","Nombre de la Institución","Rubro","Ciudad","Teléfonos","Desde ",null,"Hasta",null,"Título exacto del cargo desempeñado","Nombre de su inmediato superior","Mencione las funciones más importantes","Causal de desvinculación","Nombre de la Institución","Rubro","Ciudad","Teléfonos","Desde ",null,"Hasta",null,"Título exacto del cargo desempeñado","Nombre de su inmediato superior","Mencione las funciones más importantes","Causal de desvinculación","Nombre de la Institución","Rubro","Ciudad","Teléfonos","Desde ",null,"Hasta",null,"Título exacto del cargo desempeñado","Nombre de su inmediato superior","Mencione las funciones más importantes","Causal de desvinculación","Nombre de la Institución","Rubro","Ciudad","Teléfonos","Desde ",null,"Hasta",null,"Título exacto del cargo desempeñado","Nombre de su inmediato superior","Mencione las funciones más importantes","Causal de desvinculación","Nombre de la Institución","Teléfonos","Desde ",null,"Hasta",null,"Título exacto del cargo desempeñado","Nombre de su inmediato superior","Mencione las funciones más importantes","Causal de desvinculación","Nombre de la Institución","Teléfonos","Desde ",null,"Hasta",null,"Título exacto del cargo desempeñado","Nombre de su inmediato superior","Mencione las funciones más importantes","Causal de desvinculación","Nombre de la Institución","Teléfonos","Desde ",null,"Hasta",null,"Título exacto del cargo desempeñado","Nombre de su inmediato superior","Mencione las funciones más importantes","Causal de desvinculación","Nombre de la Institución","Teléfonos","Desde ",null,"Hasta",null,"Título exacto del cargo desempeñado","Nombre de su inmediato superior","Mencione las funciones más importantes","Causal de desvinculación",null,null,"Disponibilidad de trabajo inmediata",null,"En caso de NO ser inmediata,  en cuanto tiempo  estaría disponible?","Autoriza la solicitud de información de su empleo actual ",null,"Pretensión salarial en Bs","¿Su pretensión salarial es negociable?",null,"¿Cuál fue el medio por el cual  usted se enteró de la convocatoria?",null,null,null,"Referencias laborales",null,null,null,"Prueba Técnica","Entrevista","Observaciones"]
[null,null,null,null,null,null,null,null,"Si","no",null,null,null,null,null,null,null,null,null,null,null,null,null,null,null,null,null,null,null,null,null,null,null,null,null,null,null,null,null,null,null,null,null,null,null,null,null,null,null,null,null,null,null,null,null,null,null,null,null,null,null,null,null,null,null,null,null,null,null,null,null,"Mes","Año","Mes","Año",null,null,null,null,null,null,null,null,"Mes","Año","Mes","Año",null,null,null,null,null,null,null,null,"Mes","Año","Mes","Año",null,null,null,null,null,null,null,null,"Mes","Año","Mes","Año",null,null,null,null,null,null,"Mes","Año","Mes","Año",null,null,null,null,null,null,"Mes","Año","Mes","Año",null,null,null,null,null,null,"Mes","Año","Mes","Año",null,null,null,null,null,null,"Mes","Año","Mes","Año",null,null,null,null,null,null,"SI","NO",null,"SI","NO",null,"SI","NO","Prensa","Radio","Página WEB","Redes Sociales","Ref 1","Ref 2","Ref 3"]
[{"$f":"'Formulario de Postulación'!N9","v":"00:00:00"},{"$f":"'Formulario de Postulación'!B9","v":0},{"$f":"CONCATENATE('Formulario de Postulación'!C13,\" \",'Formulario de Postulación'!N13,\" \",'Formulario de Postulación'!Y13)","v":"  "},null,null,{"$f":"'Formulario de Postulación'!N19","v":0},{"$f":"'Formulario de Postulación'!Y19","v":0},{"$f":"'Formulario de Postulación'!U21","v":0},{"$f":"'Formulario de Postulación'!F27","v":0},{"$f":"'Formulario de Postulación'!I27","v":0},{"$f":"IF('Formulario de Postulación'!F33=1,\"Estudiante\",IF('Formulario de Postulación'!F33=2,\"Tec. Medio\",IF('Formulario de Postulación'!F33=3,\"Tec. Sup\",IF('Formulario de Postulación'!F33=4,\"Egreso\",IF('Formulario de Postulación'!F33=5,\"Licenciatura\",IF('Formulario de Postulación'!F33=6,\"Diplomado\",IF('Formulario de Postulación'!F33=7,\"Maestría\",IF('Formulario de Postulación'!F33=8,\"Doctorado\",IF('Formulario de Postulación'!F33=9,\"Certificación\",IF('Formulario de Postulación'!F33=10,\"Especialidad\",0))))))))))","v":"Egreso"},{"$f":"'Formulario de Postulación'!G33:M33","v":0},{"$f":"'Formulario de Postulación'!AB33","v":0},{"$f":"'Formulario de Postulación'!AH33","v":0},{"$f":"IF('Formulario de Postulación'!F34=1,\"Estudiante\",IF('Formulario de Postulación'!F34=2,\"Tec. Medio\",IF('Formulario de Postulación'!F34=3,\"Tec. Sup\",IF('Formulario de Postulación'!F34=4,\"Egreso\",IF('Formulario de Postulación'!F34=5,\"Licenciatura\",IF('Formulario de Postulación'!F34=6,\"Diplomado\",IF('Formulario de Postulación'!F34=7,\"Maestría\",IF('Formulario de Postulación'!F34=8,\"Doctorado\",IF('Formulario de Postulación'!F34=9,\"Certificación\",IF('Formulario de Postulación'!F34=10,\"Especialidad\",0))))))))))","v":"Estudiante"},{"$f":"'Formulario de Postulación'!G34","v":0},{"$f":"'Formulario de Postulación'!AB33","v":0},{"$f":"'Formulario de Postulación'!AH34","v":0},{"$f":"IF('Formulario de Postulación'!F35=1,\"Estudiante\",IF('Formulario de Postulación'!F35=2,\"Tec. Medio\",IF('Formulario de Postulación'!F35=3,\"Tec. Sup\",IF('Formulario de Postulación'!F35=4,\"Egreso\",IF('Formulario de Postulación'!F35=5,\"Licenciatura\",IF('Formulario de Postulación'!F35=6,\"Diplomado\",IF('Formulario de Postulación'!F35=7,\"Maestría\",IF('Formulario de Postulación'!F35=8,\"Doctorado\",IF('Formulario de Postulación'!F35=9,\"Certificación\",IF('Formulario de Postulación'!F35=10,\"Especialidad\",0))))))))))","v":"Estudiante"},{"$f":"'Formulario de Postulación'!G35","v":0},{"$f":"'Formulario de Postulación'!AB35","v":0},{"$f":"'Formulario de Postulación'!AH35","v":0},{"$f":"IF('Formulario de Postulación'!F36=1,\"Estudiante\",IF('Formulario de Postulación'!F36=2,\"Tec. Medio\",IF('Formulario de Postulación'!F36=3,\"Tec. Sup\",IF('Formulario de Postulación'!F36=4,\"Egreso\",IF('Formulario de Postulación'!F36=5,\"Licenciatura\",IF('Formulario de Postulación'!F36=6,\"Diplomado\",IF('Formulario de Postulación'!F36=7,\"Maestría\",IF('Formulario de Postulación'!F36=8,\"Doctorado\",IF('Formulario de Postulación'!F36=9,\"Certificación\",IF('Formulario de Postulación'!F36=10,\"Especialidad\",0))))))))))","v":"Estudiante"},{"$f":"'Formulario de Postulación'!G36","v":0},{"$f":"'Formulario de Postulación'!AB36","v":0},{"$f":"'Formulario de Postulación'!AH36","v":0},{"$f":"IF('Formulario de Postulación'!F37=1,\"Estudiante\",IF('Formulario de Postulación'!F37=2,\"Tec. Medio\",IF('Formulario de Postulación'!F37=3,\"Tec. Sup\",IF('Formulario de Postulación'!F37=4,\"Egreso\",IF('Formulario de Postulación'!F37=5,\"Licenciatura\",IF('Formulario de Postulación'!F37=6,\"Diplomado\",IF('Formulario de Postulación'!F37=7,\"Maestría\",IF('Formulario de Postulación'!F37=8,\"Doctorado\",IF('Formulario de Postulación'!F37=9,\"Certificación\",IF('Formulario de Postulación'!F37=10,\"Especialidad\",0))))))))))","v":"Estudiante"},{"$f":"'Formulario de Postulación'!G37","v":0},{"$f":"'Formulario de Postulación'!AB37","v":0},{"$f":"'Formulario de Postulación'!AH37","v":0},null,{"$f":"'Formulario de Postulación'!C43","v":0},{"$f":"'Formulario de Postulación'!R43","v":0},{"$f":"'Formulario de Postulación'!Z43","v":0},{"$f":"'Formulario de Postulación'!C44","v":0},{"$f":"'Formulario de Postulación'!R44","v":0},{"$f":"'Formulario de Postulación'!Z44","v":0},{"$f":"'Formulario de Postulación'!C45","v":0},{"$f":"'Formulario de Postulación'!Z45","v":0},{"$f":"'Formulario de Postulación'!C46","v":0},{"$f":"'Formulario de Postulación'!Z46","v":0},{"$f":"'Formulario de Postulación'!C47","v":0},{"$f":"'Formulario de Postulación'!Z47","v":0},{"$f":"'Formulario de Postulación'!C48","v":0},{"$f":"'Formulario de Postulación'!Z48","v":0},{"$f":"'Formulario de Postulación'!C52","v":0},{"$f":"IF('Formulario de Postulación'!L52=2,\"Muy bien\",IF('Formulario de Postulación'!L52=3,\"Bien\",IF('Formulario de Postulación'!L52=4,\"Regular\",0)))","v":"Bien"},{"$f":"IF('Formulario de Postulación'!P52=2,\"Muy bien\",IF('Formulario de Postulación'!P52=3,\"Bien\",IF('Formulario de Postulación'!P52=4,\"Regular\",0)))","v":"Muy bien"},{"$f":"IF('Formulario de Postulación'!T52=2,\"Muy bien\",IF('Formulario de Postulación'!T52=3,\"Bien\",IF('Formulario de Postulación'!T52=4,\"Regular\",0)))","v":"Bien"},{"$f":"'Formulario de Postulación'!C53","v":0},{"$f":"IF('Formulario de Postulación'!P53=2,\"Muy bien\",IF('Formulario de Postulación'!P53=3,\"Bien\",IF('Formulario de Postulación'!P53=4,\"Regular\",0)))","v":0},{"$f":"IF('Formulario de Postulación'!P53=2,\"Muy bien\",IF('Formulario de Postulación'!P53=3,\"Bien\",IF('Formulario de Postulación'!P53=4,\"Regular\",0)))","v":0},{"$f":"IF('Formulario de Postulación'!T53=2,\"Muy bien\",IF('Formulario de Postulación'!T53=3,\"Bien\",IF('Formulario de Postulación'!T53=4,\"Regular\",0)))","v":0},{"$f":"'Formulario de Postulación'!C54","v":0},{"$f":"IF('Formulario de Postulación'!L54=2,\"Muy bien\",IF('Formulario de Postulación'!L54=3,\"Bien\",IF('Formulario de Postulación'!L54=4,\"Regular\",0)))","v":0},{"$f":"IF('Formulario de Postulación'!P54=2,\"Muy bien\",IF('Formulario de Postulación'!P54=3,\"Bien\",IF('Formulario de Postulación'!P54=4,\"Regular\",0)))","v":0},{"$f":"IF('Formulario de Postulación'!T54=2,\"Muy bien\",IF('Formulario de Postulación'!T54=3,\"Bien\",IF('Formulario de Postulación'!T54=4,\"Regular\",0)))","v":0},{"$f":"'Formulario de Postulación'!W52","v":0},{"$f":"IF('Formulario de Postulación'!AI52=2,\"Muy bien\",IF('Formulario de Postulación'!AI52=3,\"Bien\",IF('Formulario de Postulación'!AI52=4,\"Regular\",0)))","v":"Muy bien"},{"$f":"'Formulario de Postulación'!W53","v":0},{"$f":"IF('Formulario de Postulación'!AI53=2,\"Muy bien\",IF('Formulario de Postulación'!AI53=3,\"Bien\",IF('Formulario de Postulación'!AI53=4,\"Regular\",0)))","v":0},{"$f":"'Formulario de Postulación'!W54","v":0},{"$f":"IF('Formulario de Postulación'!AI54=2,\"Muy bien\",IF('Formulario de Postulación'!AI54=3,\"Bien\",IF('Formulario de Postulación'!AI54=4,\"Regular\",0)))","v":0},{"$f":"'Formulario de Postulación'!W55","v":0},{"$f":"IF('Formulario de Postulación'!AI55=2,\"Muy bien\",IF('Formulario de Postulación'!AI55=3,\"Bien\",IF('Formulario de Postulación'!AI55=4,\"Regular\",0)))","v":0},{"$f":"'Formulario de Postulación'!W56","v":0},{"$f":"IF('Formulario de Postulación'!AI56=2,\"Muy bien\",IF('Formulario de Postulación'!AI56=3,\"Bien\",IF('Formulario de Postulación'!AI56=4,\"Regular\",0)))","v":0},{"$f":"'Formulario de Postulación'!B60","v":0},{"$f":"'Formulario de Postulación'!N60","v":0},{"$f":"'Formulario de Postulación'!V60","v":0},{"$f":"'Formulario de Postulación'!AA60","v":0},{"$f":"'Formulario de Postulación'!AE60","v":0},{"$f":"'Formulario de Postulación'!AF60","v":0},{"$f":"'Formulario de Postulación'!AH60","v":0},{"$f":"'Formulario de Postulación'!AI60","v":0},{"$f":"'Formulario de Postulación'!B62","v":0},{"$f":"'Formulario de Postulación'!B64","v":0},{"$f":"'Formulario de Postulación'!N62","v":0},{"$f":"'Formulario de Postulación'!B66","v":0},{"$f":"'Formulario de Postulación'!B70","v":0},{"$f":"'Formulario de Postulación'!N70","v":0},{"$f":"'Formulario de Postulación'!V70","v":0},{"$f":"'Formulario de Postulación'!AA70","v":0},{"$f":"'Formulario de Postulación'!AE70","v":0},{"$f":"'Formulario de Postulación'!AF70","v":0},{"$f":"'Formulario de Postulación'!AH70","v":0},{"$f":"'Formulario de Postulación'!AI70","v":0},{"$f":"'Formulario de Postulación'!B72","v":0},{"$f":"'Formulario de Postulación'!B74","v":0},{"$f":"'Formulario de Postulación'!N72","v":0},{"$f":"'Formulario de Postulación'!B76","v":0},{"$f":"'Formulario de Postulación'!B80","v":0},{"$f":"'Formulario de Postulación'!N80","v":0},{"$f":"'Formulario de Postulación'!V80","v":0},{"$f":"'Formulario de Postulación'!AA80","v":0},{"$f":"'Formulario de Postulación'!AE80","v":0},{"$f":"'Formulario de Postulación'!AF80","v":0},{"$f":"'Formulario de Postulación'!AH80","v":0},{"$f":"'Formulario de Postulación'!AI80","v":0},{"$f":"'Formulario de Postulación'!B82","v":0},{"$f":"'Formulario de Postulación'!B84","v":0},{"$f":"'Formulario de Postulación'!N82","v":0},{"$f":"'Formulario de Postulación'!B86","v":0},{"$f":"'Formulario de Postulación'!Texto52","v":0},{"$f":"'Formulario de Postulación'!N92","v":0},{"$f":"'Formulario de Postulación'!V92","v":0},{"$f":"'Formulario de Postulación'!AA92","v":0},{"$f":"'Formulario de Postulación'!AE92","v":0},{"$f":"'Formulario de Postulación'!AF92","v":0},{"$f":"'Formulario de Postulación'!AH92","v":0},{"$f":"'Formulario de Postulación'!AI92","v":0},{"$f":"'Formulario de Postulación'!Texto55","v":0},{"$f":"'Formulario de Postulación'!B96","v":0},{"$f":"'Formulario de Postulación'!Texto56","v":0},{"$f":"'Formulario de Postulación'!B98","v":0},{"$f":"'Formulario de Postulación'!B102","v":0},{"$f":"'Formulario de Postulación'!AA102","v":0},{"$f":"'Formulario de Postulación'!AE102","v":0},{"$f":"'Formulario de Postulación'!AF102","v":0},{"$f":"'Formulario de Postulación'!AH102","v":0},{"$f":"'Formulario de Postulación'!AI102","v":0},{"$f":"'Formulario de Postulación'!B104","v":0},{"$f":"'Formulario de Postulación'!B106","v":0},{"$f":"'Formulario de Postulación'!N104","v":0},{"$f":"'Formulario de Postulación'!B108","v":0},{"$f":"'Formulario de Postulación'!B112","v":0},{"$f":"'Formulario de Postulación'!AA112","v":0},{"$f":"'Formulario de Postulación'!AE112","v":0},{"$f":"'Formulario de Postulación'!AF112","v":0},{"$f":"'Formulario de Postulación'!AH112","v":0},{"$f":"'Formulario de Postulación'!AI112","v":0},{"$f":"'Formulario de Postulación'!B114","v":0},{"$f":"'Formulario de Postulación'!G116","v":0},{"$f":"'Formulario de Postulación'!N114","v":0},{"$f":"'Formulario de Postulación'!B118","v":0},{"$f":"'Formulario de Postulación'!B122","v":0},{"$f":"'Formulario de Postulación'!AA122","v":0},{"$f":"'Formulario de Postulación'!AE122","v":0},{"$f":"'Formulario de Postulación'!AF122","v":0},{"$f":"'Formulario de Postulación'!AH122","v":0},{"$f":"'Formulario de Postulación'!AI122","v":0},{"$f":"'Formulario de Postulación'!B124","v":0},{"$f":"'Formulario de Postulación'!G126","v":0},{"$f":"'Formulario de Postulación'!N124","v":0},{"$f":"'Formulario de Postulación'!B128","v":0},{"$f":"'Formulario de Postulación'!B132","v":0},{"$f":"'Formulario de Postulación'!AA132","v":0},{"$f":"'Formulario de Postulación'!AE132","v":0},{"$f":"'Formulario de Postulación'!AF132","v":0},{"$f":"'Formulario de Postulación'!AH132","v":0},{"$f":"'Formulario de Postulación'!AI132","v":0},{"$f":"'Formulario de Postulación'!B134","v":0},{"$f":"'Formulario de Postulación'!G136","v":0},{"$f":"'Formulario de Postulación'!N134","v":0},{"$f":"'Formulario de Postulación'!B138","v":0},null,{"$f":"'Formulario de Postulación'!B142","v":0},{"$f":"'Formulario de Postulación'!K146","v":0},{"$f":"'Formulario de Postulación'!N146","v":0},{"$f":"'Formulario de Postulación'!AE146","v":0},{"$f":"'Formulario de Postulación'!V148","v":0},{"$f":"'Formulario de Postulación'!Y148","v":0},{"$f":"'Formulario de Postulación'!H151","v":0},{"$f":"'Formulario de Postulación'!V151","v":0},{"$f":"'Formulario de Postulación'!Y151","v":0},{"$f":"'Formulario de Postulación'!R153","v":0},{"$f":"'Formulario de Postulación'!V153","v":0},{"$f":"'Formulario de Postulación'!X153","v":"Redes sociales"},{"$f":"'Formulario de Postulación'!Z153","v":0},{"$f":"CONCATENATE('Formulario de Postulación'!D156,\" \",'Formulario de Postulación'!N156,)","v":" "},{"$f":"CONCATENATE('Formulario de Postulación'!D157,\" \",'Formulario de Postulación'!N157,)","v":" "},{"$f":"CONCATENATE('Formulario de Postulación'!D158,\" \",'Formulario de Postulación'!N158,)","v":" "}]
[null,null,null,null,null,null,null,null,null,null,null,null,null,null,null,null,null,null,null,null,null,null,null,null,null,null,null,null,null,null,null,null,null,null,null,null,null,null,null,null,null,null,null,null,null,null,null,null,null,null,null,null,null,null,null,null,null,null,null,null,null,null,null,null,null,null,null,null,null,null,null,null,null,null,null,null,null,"."]